bitfinex/quotes_ETHUSD_20251218
["timestamp","ask_amount","ask_price","bid_price","bid_amount"]
[1766022127195,0.9318,2833.7,2832.9,0.3696]
[1766022127433,0.9318,2833.7,2833.0,0.3696]
[1766022127597,0.9328,2834.1,2833.2,0.3696]
[1766022128108,0.9318,2834.0,2833.2,0.3696]
[1766022128523,1.3002,2834.0,2833.2,0.3696]
[1766022129398,0.3684,2834.0,2833.2,0.3696]
[1766022129729,0.9318,2833.9,2833.2,0.3696]
[1766022130824,1.3065,2833.9,2833.2,0.3696]
[1766022131128,0.3747,2833.6,2833.0,0.405504]
[1766022131428,0.9138,2833.5,2832.8,0.405504]
[1766022131627,0.9138,2833.7,2832.8,0.405504]
[1766022131834,0.9138,2833.7,2833.1,0.3469]
[1766022133943,1.2885,2833.7,2833.0,0.752404]
[1766022134141,0.3747,2833.7,2833.0,0.752404]
[1766022134319,0.9138,2833.6,2833.0,0.752404]
[1766022135124,0.9138,2833.6,2833.0,0.407504]
[1766022135333,1.2885,2833.8,2833.1,0.3469]
[1766022135650,0.9138,2834.0,2833.1,0.3469]
[1766022135826,0.9138,2833.8,2833.1,0.3469]
[1766022136141,0.3747,2833.7,2833.1,0.3469]
[1766022136324,1.2885,2833.7,2833.1,0.3469]
[1766022136520,0.9138,2833.7,2833.1,0.3469]
[1766022137547,0.001,2834.1,2833.1,0.3469]
[1766022137840,1.5276227,2834.1,2833.1,0.38220325]
[1766022138045,0.9148,2834.1,2833.3,0.38220325]
[1766022138215,0.001,2834.1,2833.3,0.38220325]
[1766022138614,0.9138,2834.6,2833.8,0.3469]
[1766022139012,0.9138,2834.3,2833.6,0.752404]
[1766022139233,0.3747,2834.6,2833.7,0.3469]
[1766022139546,1.2885,2834.6,2833.7,0.3469]
[1766022140111,0.9138,2834.5,2833.7,0.3469]
[1766022140317,1.2885,2834.5,2833.7,0.3469]
[1766022140952,0.9138,2834.4,2833.7,0.3469]
[1766022141139,1.2885,2834.3,2833.6,0.752404]
[1766022141445,0.9138,2834.3,2833.7,0.3469]
[1766022142850,1.2885,2834.5,2833.7,0.3469]
[1766022143048,0.9138,2834.4,2833.7,0.3469]
[1766022144325,0.3747,2834.4,2833.7,0.3469]
[1766022144560,0.9138,2834.3,2833.7,0.3469]
[1766022145156,0.3747,2834.4,2833.7,0.3469]
[1766022145620,1.2885,2834.4,2833.7,0.3469]
[1766022146747,0.001,2834.6,2833.7,0.3469]
[1766022146924,0.001,2834.6,2833.7,0.38220325]
[1766022147141,0.9148,2834.6,2833.7,0.38220325]
[1766022148191,1.2895,2834.6,2833.7,0.38220325]
[1766022148666,1.2895,2834.6,2833.8,0.3469]
[1766022148872,0.9148,2834.6,2833.8,0.3469]
[1766022149839,0.3747,2834.5,2833.8,0.3469]
[1766022150041,0.9138,2834.4,2833.8,0.3469]
[1766022150838,0.001,2834.6,2833.8,0.3469]
[1766022151043,0.9148,2834.6,2833.8,0.3469]
[1766022151855,1.2895,2834.6,2833.8,0.3469]
[1766022154080,0.18551771,2835.1,2833.9,0.03530325]
[1766022154081,0.001,2835.1,2833.9,0.03530325]
[1766022154376,0.001,2835.1,2834.3,0.405504]
[1766022154377,0.90947738,2835.1,2834.3,0.405504]
[1766022154589,0.90947738,2835.1,2834.4,0.3469]
[1766022155296,0.3757,2835.2,2834.4,0.3469]
[1766022156379,1.2895,2835.2,2834.4,0.3469]
[1766022156899,1.2885,2835.1,2834.4,0.3469]
[1766022157104,0.3757,2835.2,2834.4,0.38220325]
[1766022157303,0.001,2835.2,2834.5,0.3469]
[1766022157501,0.001,2835.2,2834.7,0.3469]
[1766022159002,0.001,2835.1,2834.7,0.3469]
[1766022160409,1.2885,2834.9,2834.3,0.405504]
[1766022160606,0.9138,2834.8,2834.2,0.3469]
[1766022161008,0.9145,2835.0,2834.2,0.3469]
[1766022161194,0.46538023,2835.1,2834.2,0.3469]
[1766022161503,0.3578,2834.9,2834.2,0.3469]
[1766022161712,0.9145,2834.8,2834.2,0.3469]
[1766022162295,0.9145,2834.8,2834.2,0.73797072]
[1766022163219,0.3578,2834.9,2834.3,0.3405]
[1766022163396,0.001,2835.1,2834.3,0.3405]
[1766022163397,0.9145,2835.0,2834.3,0.37580325]
[1766022163592,0.9145,2835.0,2834.4,0.405504]
[1766022163799,0.001,2835.1,2834.5,0.3405]
[1766022164000,0.9155,2835.1,2834.5,0.3405]
[1766022164521,0.3578,2835.0,2834.5,0.3405]
[1766022164728,1.2723,2835.0,2834.5,0.3405]
[1766022165323,0.9145,2834.9,2834.3,0.03530325]
[1766022165495,0.9155,2835.1,2834.4,0.3405]
[1766022165691,1.2733,2835.1,2834.4,0.3405]
[1766022166325,0.9145,2835.0,2834.4,0.3405]
[1766022166929,1.2723,2835.0,2834.4,0.3405]
[1766022167433,0.9145,2834.9,2834.4,0.3405]
[1766022167615,0.9145,2834.8,2834.2,0.39107072]
[1766022167799,0.9145,2834.6,2834.3,0.68893683]
[1766022168000,0.3578,2834.8,2834.2,0.746004]
[1766022168201,1.2723,2834.8,2834.2,0.746004]
[1766022168498,0.9145,2835.0,2834.3,0.3405]
[1766022168700,0.9145,2834.9,2834.3,0.3405]
[1766022168922,1.2723,2834.9,2834.3,0.3405]
[1766022171021,0.3578,2834.8,2834.3,0.3405]
[1766022171226,1.2723,2834.8,2834.3,0.3405]
[1766022172025,0.9155,2835.1,2834.3,0.37580325]
[1766022173123,1.2733,2835.1,2834.3,0.37580325]
[1766022173525,1.2733,2835.1,2834.3,0.37780325]
[1766022173699,1.2733,2835.1,2834.5,0.3405]
[1766022176331,0.9145,2835.0,2834.5,0.3405]
[1766022176634,0.3578,2834.8,2834.3,0.3425]
[1766022176829,0.9145,2835.0,2834.3,0.3425]
[1766022177036,1.2723,2835.0,2834.3,0.3425]
[1766022177239,0.3578,2835.0,2834.3,0.3425]
[1766022177447,1.2723,2835.0,2834.3,0.3425]
[1766022178113,0.3578,2835.0,2834.3,0.3425]
[1766022178318,0.9145,2835.0,2834.3,0.3425]
[1766022178532,0.001,2835.1,2834.3,0.3425]
[1766022178533,1.2723,2834.9,2834.3,0.3425]
[1766022178937,1.2723,2834.8,2834.3,0.3425]
[1766022180646,0.9145,2834.7,2834.3,0.3425]
[1766022181145,0.9155,2835.1,2834.3,0.37780325]
[1766022181342,0.001,2835.1,2834.5,0.37580325]
[1766022181719,0.001,2835.1,2834.8,0.3405]
[1766022182036,0.001,2835.1,2834.5,0.03530325]
[1766022182343,0.001,2835.1,2834.5,0.37580325]
[1766022182725,0.9155,2835.1,2834.6,0.3405]
[1766022183333,0.9145,2835.0,2834.5,0.03530325]
[1766022183536,1.2723,2834.8,2834.5,0.03530325]
[1766022183731,0.9145,2834.8,2834.4,0.746004]
[1766022183933,1.2723,2835.0,2834.4,0.746004]
[1766022184814,1.2723,2834.6,2834.3,0.002]
[1766022185029,0.9145,2834.4,2834.3,0.002]
[1766022185322,0.3578,2835.0,2834.3,0.3425]
[1766022185522,0.9145,2834.8,2834.3,0.3425]
[1766022185744,0.9145,2834.7,2834.3,0.3425]
[1766022185919,1.2723,2834.7,2834.3,0.002]
[1766022187244,0.3578,2834.7,2834.3,0.002]
[1766022187449,0.9145,2834.6,2834.3,0.002]
[1766022187847,0.001,2835.1,2834.1,0.002]
[1766022187848,1.2723,2834.3,2834.1,0.002]
[1766022188049,0.9145,2834.2,2834.1,0.002]
[1766022188249,1.2723,2834.3,2834.1,0.002]
[1766022188453,0.9145,2834.7,2834.1,0.002]
[1766022188622,1.2723,2834.7,2834.1,0.002]
[1766022188826,1.2723,2834.5,2834.1,0.002]
[1766022189039,0.9145,2834.4,2834.1,0.002]
[1766022189351,0.9145,2834.2,2833.7,0.37580325]
[1766022189729,0.9145,2834.4,2833.7,0.37580325]
[1766022190046,0.001,2835.1,2833.8,0.37580325]
[1766022190047,0.3578,2834.5,2833.8,0.37580325]
[1766022190253,0.9047,2834.6,2833.8,0.37580325]
[1766022190626,1.2629,2834.6,2834.0,0.002]
[1766022190824,1.2629,2834.6,2834.0,0.3594]
[1766022191553,0.3582,2834.6,2834.0,0.3594]
[1766022191728,0.9169,2834.4,2834.0,0.3594]
[1766022192053,1.2632,2834.4,2834.0,0.002]
[1766022192454,0.9169,2834.3,2834.0,0.002]
[1766022192844,1.2632,2834.4,2834.0,0.002]
[1766022193040,0.9169,2834.6,2834.0,0.3594]
[1766022193240,0.3463,2835.0,2834.1,0.03528457]
[1766022193462,1.2632,2834.8,2834.2,0.3574]
[1766022193773,0.9169,2834.6,2834.2,0.3574]
[1766022193937,0.001,2835.1,2834.2,0.3574]
[1766022194131,0.9169,2834.8,2834.0,0.002]
[1766022194336,0.3463,2834.9,2834.1,0.4947]
[1766022194544,0.3463,2834.9,2834.0,0.002]
[1766022194748,0.3463,2834.9,2834.0,0.3594]
[1766022195550,0.3463,2834.9,2834.0,0.002]
[1766022196565,0.3463,2834.7,2834.0,0.002]
[1766022196770,0.3463,2834.5,2834.0,0.002]
[1766022196941,0.9169,2834.4,2834.0,0.3594]
[1766022197265,0.9169,2835.0,2834.0,0.8541]
[1766022197475,1.2632,2834.8,2834.1,0.3574]
[1766022197637,0.001,2835.1,2834.0,0.002]
[1766022197840,0.3463,2834.9,2834.0,0.002]
[1766022198041,0.9169,2834.6,2834.0,0.002]
[1766022198273,0.9169,2834.6,2834.0,0.3594]
[1766022198783,1.2632,2834.6,2834.0,0.3594]
[1766022199078,0.3463,2834.6,2834.0,0.002]
[1766022199285,0.001,2835.0,2834.0,0.002]
[1766022199481,0.9169,2834.9,2834.0,0.002]
[1766022199685,0.001,2835.0,2834.0,0.002]
[1766022199686,0.9169,2834.5,2834.0,0.002]
[1766022199979,0.9169,2834.5,2834.0,0.4967]
[1766022200179,0.3463,2834.7,2834.0,0.3594]
[1766022200481,0.001,2835.0,2834.0,0.3594]
[1766022200482,1.2632,2834.6,2834.0,0.3594]
[1766022200684,0.3463,2834.8,2834.0,0.4967]
[1766022201008,0.9169,2834.7,2834.1,0.3574]
[1766022201781,0.9169,2834.7,2834.1,0.8521]
[1766022201954,0.3463,2834.8,2834.2,0.3574]
[1766022202158,1.2632,2834.8,2834.2,0.3574]
[1766022202373,0.3463,2834.6,2834.0,0.40808249]
[1766022202581,1.2632,2834.6,2834.0,0.3594]
[1766022203087,0.001,2835.0,2834.0,0.002]
[1766022203266,0.9169,2834.7,2834.0,0.002]
[1766022203469,1.2632,2834.4,2834.0,0.002]
[1766022203664,0.3463,2834.8,2834.0,0.002]
[1766022203870,1.2632,2834.6,2834.0,0.3594]
[1766022204066,0.9169,2834.5,2834.0,0.3594]
[1766022204257,0.3463,2834.9,2834.0,0.4967]
[1766022204462,0.3463,2834.8,2834.1,0.3574]
[1766022204786,0.9169,2834.7,2834.1,0.3574]
[1766022204991,0.9169,2834.7,2834.1,0.4947]
[1766022205176,1.2642,2835.0,2834.1,0.4947]
[1766022205494,0.3463,2834.8,2834.0,0.002]
[1766022205696,0.3463,2834.6,2834.0,0.002]
[1766022205993,0.9169,2834.7,2834.0,0.8541]
[1766022206189,0.9169,2834.6,2834.1,0.3574]
[1766022206485,1.2632,2834.6,2834.1,0.3574]
[1766022206687,0.9169,2834.9,2834.0,0.002]
[1766022206987,0.9169,2834.5,2834.0,0.3594]
[1766022207192,0.001,2835.0,2834.0,0.3594]
[1766022207193,1.2632,2834.4,2834.0,0.002]
[1766022207401,0.9169,2834.9,2834.0,0.002]
[1766022207587,1.2632,2834.7,2834.1,0.3574]
[1766022207889,0.9169,2834.6,2834.1,0.3574]
[1766022208187,0.3463,2834.7,2834.1,0.3574]
[1766022208391,0.3463,2834.8,2834.1,0.3574]
[1766022208695,1.2632,2834.6,2834.1,0.3574]
[1766022209986,1.2632,2834.6,2834.1,0.8521]
[1766022210171,0.9169,2834.5,2834.1,0.3574]
[1766022210374,0.3463,2834.6,2834.1,0.3574]
[1766022210690,0.001,2835.0,2834.1,0.8521]
[1766022210916,0.9169,2834.9,2834.1,0.8521]
[1766022211084,1.2632,2834.9,2834.2,0.3574]
[1766022211280,1.2632,2834.9,2834.3,0.8521]
[1766022211613,0.9169,2834.9,2834.3,0.3574]
[1766022211784,1.2642,2835.0,2834.3,0.8521]
[1766022211983,1.2632,2834.9,2834.3,0.3574]
[1766022212689,1.2632,2834.9,2834.1,0.8521]
[1766022213018,0.9169,2834.8,2834.2,0.3574]
[1766022213322,1.2632,2834.8,2834.3,0.3574]
[1766022213606,0.001,2835.0,2834.4,0.3574]
[1766022213810,1.2642,2835.0,2834.4,0.3574]
[1766022214006,0.9169,2834.9,2834.4,0.3574]
[1766022214306,0.9169,2834.8,2834.4,0.3574]
[1766022214677,0.001,2835.0,2834.4,0.3574]
[1766022215080,0.001,2835.2,2834.7,0.4937]
[1766022215316,0.001,2835.2,2834.8,0.3574]
[1766022215490,0.001,2835.2,2834.9,0.3574]
[1766022216081,1.2632,2835.1,2834.4,0.3574]
[1766022216286,1.2632,2834.9,2834.2,0.762904]
[1766022216813,1.2632,2834.9,2834.1,0.405504]
[1766022217016,1.2632,2834.9,2834.3,0.762904]
[1766022217179,1.2632,2834.9,2834.4,0.3574]
[1766022217698,0.9169,2834.8,2834.4,0.3574]
[1766022217906,0.3463,2835.0,2834.0,0.3594]
[1766022218081,1.2632,2834.7,2834.0,0.3594]
[1766022218277,1.2632,2834.7,2834.1,0.3574]
[1766022218503,1.2632,2835.0,2834.2,0.4937]
[1766022218695,0.001,2835.2,2834.6,0.4937]
[1766022218909,0.001,2835.2,2834.9,0.3574]
[1766022219208,0.001,2835.2,2834.6,0.3574]
[1766022219618,0.001,2835.2,2834.8,0.3574]
[1766022220704,1.2632,2835.0,2834.3,0.3574]
[1766022220912,0.9329,2834.9,2834.3,0.3574]
[1766022222530,1.3071,2834.6,2834.0,0.002]
[1766022222893,1.3071,2834.6,2834.0,0.407504]
[1766022223092,1.3071,2834.6,2834.0,0.3614]
[1766022223292,0.9329,2835.1,2834.1,0.3594]
[1766022223591,1.3071,2834.8,2834.1,0.3594]
[1766022224435,0.3742,2834.7,2834.0,0.002]
[1766022224736,1.3071,2834.5,2834.0,0.002]
[1766022224939,1.3071,2834.5,2834.0,0.3614]
[1766022225594,0.3742,2834.9,2834.0,0.4957]
[1766022225795,1.3071,2834.8,2834.1,0.3594]
[1766022227297,0.9329,2834.9,2834.0,0.002]
[1766022227504,1.3071,2834.6,2834.0,0.002]
[1766022228203,1.3071,2834.6,2834.0,0.3614]
[1766022233509,6.78340264,2835.1,2834.1,0.8531]
[1766022233709,0.9329,2835.0,2834.1,0.8531]
[1766022234033,0.9329,2834.8,2834.3,0.3594]
[1766022234227,1.3071,2834.8,2834.3,0.3594]
[1766022234415,0.9329,2834.7,2834.0,0.002]
[1766022234622,0.9329,2834.7,2834.1,0.3594]
[1766022234833,0.9329,2834.7,2834.2,0.3594]
[1766022235214,0.3742,2834.8,2834.2,0.4937]
[1766022235713,1.3071,2834.8,2834.3,0.8531]
[1766022236112,1.3071,2834.8,2834.3,0.3594]
[1766022236314,0.3742,2834.8,2834.3,0.3594]
[1766022236644,0.9329,2834.7,2834.3,0.3594]
[1766022236953,2.05703328,2835.1,2834.3,0.3594]
[1766022237241,2.05703328,2835.1,2834.2,0.4937]
[1766022237242,0.85558829,2835.0,2834.4,0.8531]
[1766022237740,2.62706852,2835.0,2834.4,0.8531]
[1766022238241,1.77148023,2834.9,2834.1,0.3594]
[1766022238436,1.77148023,2834.9,2834.3,0.3594]
[1766022238831,0.83858023,2834.9,2834.3,0.3594]
[1766022239031,1.3071,2834.8,2834.3,0.3594]
[1766022239233,0.72708708,2834.8,2834.0,0.002]
[1766022239546,0.26270685,2834.8,2834.2,0.3594]
[1766022239748,0.9329,2834.7,2834.1,0.3594]
[1766022240055,0.9329,2834.7,2834.2,0.3594]
[1766022240239,0.9329,2834.7,2834.3,0.3594]
[1766022240436,0.63690685,2834.8,2834.0,0.002]
[1766022240437,0.3742,2834.6,2834.0,0.002]
[1766022240615,0.3742,2834.8,2834.2,0.3594]
[1766022240815,1.3071,2834.8,2834.2,0.3594]
[1766022241020,0.21626883,2834.8,2834.3,0.4937]
[1766022241327,0.85558829,2835.0,2834.4,0.3594]
[1766022241521,0.85558829,2835.0,2834.4,0.8531]
[1766022241731,0.85558829,2835.0,2834.5,0.3594]
[1766022241940,0.001,2835.1,2834.3,0.4937]
[1766022242156,0.001,2835.1,2834.1,0.8531]
[1766022242439,0.001,2835.1,2834.5,0.4937]
[1766022242639,0.001,2835.1,2834.4,0.3594]
[1766022242844,1.3081,2835.1,2834.6,0.3594]
[1766022243028,0.001,2835.1,2834.7,0.3594]
[1766022243223,0.001,2835.1,2834.4,0.03528083]
[1766022243435,0.001,2835.2,2834.9,0.3594]
[1766022243746,0.001,2835.3,2834.9,0.4917]
[1766022243747,0.001,2835.1,2834.9,0.4917]
[1766022243954,0.001,2835.5,2834.4,0.03530325]
[1766022244118,0.9339,2835.5,2834.7,0.4897]
[1766022244313,0.9329,2835.4,2835.0,0.3594]
[1766022244663,1.3071,2835.4,2834.6,0.3594]
[1766022244839,0.001,2835.5,2834.7,0.4897]
[1766022245044,0.001,2835.5,2834.6,0.3594]
[1766022245339,0.001,2835.5,2834.4,0.03530325]
[1766022245518,0.001,2835.5,2834.7,0.4897]
[1766022245720,0.001,2835.5,2834.2,0.3594]
[1766022245721,0.3742,2835.2,2834.2,0.3594]
[1766022245942,0.9329,2835.0,2834.4,0.3594]
[1766022246131,6.12364959,2835.4,2834.4,0.4897]
[1766022246338,0.9329,2835.2,2834.5,0.3594]
[1766022246646,1.3071,2835.2,2834.5,0.3594]
[1766022246859,0.001,2835.5,2834.7,0.3594]
[1766022247160,0.46538023,2835.5,2834.7,0.4897]
[1766022247349,0.46538023,2835.5,2834.9,0.4897]
[1766022247520,1.3071,2835.3,2834.2,0.46438023]
[1766022247721,0.9329,2835.2,2834.2,0.46438023]
[1766022247929,0.46538023,2835.5,2834.2,0.46438023]
[1766022247930,1.39828023,2835.5,2834.2,0.46438023]
[1766022248130,0.46538023,2835.5,2834.3,0.4897]
[1766022248331,0.3742,2835.4,2834.6,0.3594]
[1766022248546,0.69632298,2835.4,2834.8,0.3594]
[1766022248870,0.69632298,2835.4,2834.4,0.3594]
[1766022249192,0.69632298,2835.4,2834.6,0.3594]
[1766022249473,0.69632298,2835.4,2834.8,0.3594]
[1766022249645,1.3071,2835.3,2834.8,0.3594]
[1766022249852,0.69632298,2835.4,2834.4,0.3594]
[1766022250053,0.69632298,2835.4,2834.6,0.3594]
[1766022250254,1.07052298,2835.4,2834.7,0.3594]
[1766022250571,0.3742,2835.2,2834.4,0.3594]
[1766022250874,0.3613,2835.0,2834.2,0.46438023]
[1766022251046,0.9683,2835.1,2834.3,0.8622]
[1766022251248,0.9683,2835.1,2834.4,0.4897]
[1766022251443,0.3477,2835.3,2834.2,0.405504]
[1766022251658,0.9757,2835.2,2834.4,0.353]
[1766022251869,0.3477,2835.0,2834.2,0.758504]
[1766022252053,6.12464959,2835.4,2834.2,0.405504]
[1766022252250,0.9757,2835.0,2834.0,0.355]
[1766022252459,0.9757,2834.8,2834.0,0.002]
[1766022252869,0.46438023,2835.1,2834.0,0.002]
[1766022252870,0.3477,2834.9,2834.1,0.353]
[1766022253067,0.9757,2834.6,2834.0,0.002]
[1766022253280,0.3477,2834.8,2834.1,0.353]
[1766022253482,0.9757,2834.8,2834.1,0.4897]
[1766022253649,0.9757,2834.8,2834.0,0.002]
[1766022253650,1.3234,2834.7,2834.0,0.002]
[1766022253850,0.95408023,2835.1,2834.1,0.353]
[1766022254151,1.3234,2834.9,2834.3,0.353]
[1766022254370,0.70777298,2835.0,2834.0,0.002]
[1766022254774,0.70777298,2835.0,2834.1,0.353]
[1766022254962,0.9757,2834.8,2834.1,0.353]
[1766022255156,0.3477,2834.7,2834.1,0.353]
[1766022255356,0.9757,2834.8,2834.0,0.002]
[1766022255357,1.3234,2834.6,2834.0,0.002]
[1766022255562,0.9757,2834.8,2834.1,0.4897]
[1766022255758,0.9757,2834.8,2834.0,0.002]
[1766022255947,1.68347298,2835.0,2834.1,0.8427]
[1766022256151,0.3477,2834.9,2834.0,0.355]
[1766022256371,0.70777298,2835.0,2834.0,0.355]
[1766022256584,1.3234,2834.9,2834.2,0.353]
[1766022256750,0.2031173,2834.8,2834.0,0.002]
[1766022257080,0.70777298,2835.0,2834.2,0.353]
[1766022257281,1.68347298,2835.0,2834.5,0.353]
[1766022257451,1.68347298,2835.0,2834.0,0.002]
[1766022257452,0.9757,2834.9,2834.0,0.002]
[1766022257646,0.3477,2834.9,2834.2,0.4897]
[1766022257853,1.3253,2834.9,2834.3,0.3721]
[1766022258053,1.62401532,2834.9,2834.3,0.3721]
[1766022258283,0.29871532,2834.9,2834.0,0.002]
[1766022258584,0.9776,2834.5,2834.0,0.002]
[1766022258790,0.3588,2834.6,2834.0,0.002]
[1766022258791,0.9776,2834.6,2834.0,0.002]
[1766022258971,1.3364,2834.6,2834.0,0.002]
[1766022259170,2.12884298,2834.6,2834.0,0.002]
[1766022259485,1.3364,2834.4,2834.0,0.002]
[1766022259698,0.9776,2834.3,2834.0,0.002]
[1766022260166,0.3588,2834.7,2834.0,0.002]
[1766022260370,1.3364,2834.6,2834.0,0.002]
[1766022260678,0.9776,2834.7,2834.0,0.002]
[1766022260878,0.29871532,2834.9,2834.1,0.3721]
[1766022261088,0.9776,2835.0,2834.3,0.3721]
[1766022261385,1.4673,2835.1,2834.3,0.8618]
[1766022261589,0.8485,2835.1,2834.0,0.3741]
[1766022261887,0.3588,2834.9,2834.0,0.3741]
[1766022262086,0.9776,2834.8,2834.1,0.3721]
[1766022262288,0.9776,2834.9,2834.2,0.3721]
[1766022262487,0.3588,2834.9,2834.0,0.3741]
[1766022262654,0.3588,2834.7,2834.0,0.3741]
[1766022262986,0.9776,2834.6,2834.0,0.3741]
[1766022263183,0.4897,2835.1,2834.0,0.3741]
[1766022263354,0.9776,2834.8,2834.0,0.3741]
[1766022263683,0.3588,2834.7,2834.1,0.3721]
[1766022263892,0.4897,2835.1,2834.0,0.002]
[1766022264052,0.9776,2834.9,2834.2,0.3721]
[1766022264256,0.9776,2835.0,2834.0,0.3741]
[1766022264482,1.3364,2834.9,2834.0,0.3741]
[1766022264661,1.3364,2834.9,2834.2,0.3721]
[1766022264863,0.4897,2835.1,2834.2,0.3721]
[1766022265061,0.9776,2834.8,2834.0,0.002]
[1766022265267,0.9776,2834.7,2834.1,0.3721]
[1766022265486,0.9776,2834.8,2834.1,0.4897]
[1766022265790,0.3588,2834.9,2834.1,0.3721]
[1766022265959,0.9776,2834.6,2834.0,0.002]
[1766022266160,0.3588,2835.0,2834.1,0.8618]
[1766022266461,0.4897,2835.1,2834.0,0.3741]
[1766022266769,0.9776,2834.9,2834.0,0.002]
[1766022266951,1.06892496,2834.8,2834.1,0.8618]
[1766022267150,0.71012496,2834.8,2834.1,0.4897]
[1766022267354,0.9776,2834.9,2834.0,0.002]
[1766022267556,0.3588,2835.0,2834.2,0.4897]
[1766022267756,0.3588,2835.2,2834.2,0.4897]
[1766022267956,6.12364959,2835.3,2834.2,0.4897]
[1766022267957,0.3588,2835.0,2834.2,0.4897]
[1766022268353,0.3588,2835.0,2834.1,0.3721]
[1766022268580,0.9776,2834.9,2834.1,0.3721]
[1766022268879,0.9776,2834.6,2834.1,0.3721]
[1766022269085,0.3588,2835.0,2834.1,0.3721]
[1766022269253,0.3588,2834.8,2834.1,0.3721]
[1766022269587,0.9776,2835.1,2834.2,0.3721]
[1766022270054,0.95408023,2835.2,2834.5,0.4897]
[1766022270258,0.80553298,2835.1,2834.2,0.3721]
[1766022270479,0.9776,2834.9,2834.2,0.3721]
[1766022270661,0.80553298,2835.1,2834.2,0.3721]
[1766022270870,1.3364,2835.0,2834.2,0.8618]
[1766022271058,0.80553298,2835.1,2834.1,0.8618]
[1766022271265,0.9776,2835.0,2834.2,0.3721]
[1766022271471,0.80553298,2835.1,2834.1,0.3721]
[1766022271782,0.80553298,2835.1,2834.0,0.3741]
[1766022271982,0.80553298,2835.1,2834.1,0.8618]
[1766022272192,1.3364,2835.0,2834.1,0.8618]
[1766022272366,0.9776,2835.0,2834.0,0.002]
[1766022272562,1.3364,2834.9,2834.1,0.3721]
[1766022272763,0.30960132,2835.0,2834.0,0.002]
[1766022272986,0.9776,2834.8,2834.1,0.4897]
[1766022273286,0.9776,2834.9,2834.2,0.3721]
[1766022273495,1.64600132,2835.0,2834.1,0.4897]
[1766022273666,1.64600132,2835.0,2834.0,0.3741]
[1766022273667,0.30960132,2835.0,2834.0,0.3741]
[1766022273873,0.30960132,2835.0,2834.0,1.07284496]
[1766022274061,1.3364,2834.9,2834.1,0.3721]
[1766022274268,0.9776,2834.9,2834.0,0.002]
[1766022274483,0.9776,2834.6,2834.0,0.002]
[1766022274683,0.9776,2834.7,2834.0,0.3741]
[1766022274886,0.9776,2834.7,2834.1,0.3721]
[1766022275077,0.3588,2834.8,2834.1,0.4897]
[1766022275277,0.3588,2834.6,2834.0,0.002]
[1766022275466,0.9776,2834.6,2834.1,0.3721]
[1766022275668,0.3588,2834.5,2834.0,0.002]
[1766022275870,1.3364,2834.4,2834.0,0.002]
[1766022276094,0.9776,2834.7,2834.0,0.002]
[1766022276408,0.9776,2834.7,2834.0,0.8638]
[1766022276684,6.43325091,2835.0,2834.0,0.8638]
[1766022276888,0.9776,2834.6,2834.0,0.4917]
[1766022277193,0.9776,2834.5,2834.0,0.4917]
[1766022277386,0.9776,2834.7,2834.0,0.8638]
[1766022277561,0.9776,2834.7,2834.0,0.4917]
[1766022277768,0.3588,2834.4,2834.0,0.4917]
[1766022277985,1.3364,2834.4,2834.0,0.4917]
[1766022278181,0.9776,2834.6,2834.0,0.4917]
[1766022278490,0.9776,2834.7,2834.0,0.4917]
[1766022278695,1.3364,2834.6,2834.0,0.4917]
[1766022279086,0.9776,2834.2,2834.0,0.002]
[1766022279398,0.9776,2834.3,2833.7,0.4917]
[1766022279567,0.46438023,2834.6,2833.9,0.3721]
[1766022279761,1.73416298,2834.5,2833.8,0.8638]
[1766022279975,0.9776,2834.6,2833.8,0.3721]
[1766022280176,0.3588,2834.7,2834.0,0.002]
[1766022280507,0.46438023,2834.8,2833.7,0.4917]
[1766022280711,0.9776,2834.6,2833.7,0.4917]
[1766022281004,0.46438023,2834.8,2833.8,0.3412]
[1766022281162,0.9613,2834.4,2833.7,0.4917]
[1766022281366,0.9613,2834.5,2833.8,0.3412]
[1766022281568,2.05849082,2834.7,2833.9,0.4937]
[1766022281867,0.366,2834.5,2833.8,0.4937]
[1766022282088,0.9613,2834.6,2833.7,0.4917]
[1766022282266,0.73119082,2834.7,2833.8,0.3412]
[1766022282474,0.366,2834.6,2833.7,0.4917]
[1766022282799,0.73119082,2834.7,2834.1,0.3412]
[1766022283095,1.3273,2834.6,2833.9,0.3412]
[1766022283387,0.46438023,2835.0,2834.0,0.4937]
[1766022283388,0.366,2834.8,2834.0,0.4937]
[1766022283590,1.3273,2834.9,2833.7,7.2781996]
[1766022283769,0.46438023,2835.0,2833.8,0.4937]
[1766022283970,0.9613,2834.7,2834.0,0.4937]
[1766022284166,0.46438023,2835.0,2833.9,0.4937]
[1766022284506,0.70807435,2834.9,2834.1,0.4937]
[1766022284669,2.03537435,2834.9,2833.9,0.3412]
[1766022284863,2.03537435,2834.9,2834.1,0.4937]
[1766022285069,0.366,2834.7,2834.0,0.3412]
[1766022285371,2.03537435,2834.9,2834.2,0.3412]
[1766022285676,0.9613,2834.7,2833.9,0.9613]
[1766022285878,0.366,2835.0,2833.7,6.12466327]
[1766022286088,0.9613,2834.7,2833.8,1.40209351]
[1766022286285,0.9613,2834.5,2833.8,1.81376919]
[1766022286490,0.366,2834.8,2834.0,0.3412]